bitfinex/quotes_SOLUSD_20260109
["timestamp","ask_amount","ask_price","bid_price","bid_amount"]
[1767924520693,0.69242162,139.13,139.08,7.18968304]
[1767924520871,5.66878213,139.14,139.1,0.69112906]
[1767924521178,0.69242162,139.15,139.1,0.69112906]
[1767924521179,5.66878213,139.15,139.1,0.69112906]
[1767924523284,5.66878213,139.14,139.1,0.69112906]
[1767924524091,12.85537514,139.15,139.1,0.69112906]
[1767924524278,5.66878213,139.15,139.1,7.88018289]
[1767924525389,6.36120375,139.2,139.15,0.69112906]
[1767924525693,5.66878213,139.19,139.15,0.69112906]
[1767924525990,0.69242162,139.14,139.08,0.69112906]
[1767924526169,6.36120375,139.14,139.09,0.69112906]
[1767924526570,5.66878213,139.1,139.07,0.69112906]
[1767924527096,5.66878213,139.11,139.07,0.69112906]
[1767924527292,5.66878213,139.11,139.07,7.88163369]
[1767924527587,0.69242162,139.12,139.08,0.69112906]
[1767924528101,0.69242162,139.12,139.08,7.88108513]
[1767924530791,6.36120375,139.12,139.08,7.88108513]
[1767924531297,6.36120375,139.12,139.05,17.97802259]
[1767924531298,7.88068164,139.12,139.06,0.69112906]
[1767924531500,5.66878213,139.11,139.07,7.88171791]
[1767924533393,5.66878213,139.12,139.08,0.69112906]
[1767924533591,5.66878213,139.13,139.08,0.69112906]
[1767924534876,0.69242162,139.14,139.08,0.69112906]
[1767924535075,6.36120375,139.15,139.09,0.69112906]
[1767924535272,5.66878213,139.14,139.1,7.88020166]
[1767924535900,5.66878213,139.13,139.1,7.88020166]
[1767924536084,5.66878213,139.13,139.1,0.69112906]
[1767924537116,6.36120375,139.12,139.08,7.88123547]
[1767924537295,6.36120375,139.12,139.07,21.00162887]
[1767924537296,5.66878213,139.1,139.07,21.00162887]
[1767924537597,5.66878213,139.09,139.07,13.12]
[1767924537799,0.69242162,139.1,139.05,0.69112906]
[1767924537800,0.69242162,139.1,139.05,7.88238585]
[1767924537994,5.66878213,139.06,138.97,0.69112906]
[1767924538191,5.66878213,139.06,138.95,0.2]
[1767924538192,0.69242162,139.08,139.03,0.69112906]
[1767924538905,5.66878213,139.07,139.03,0.69112906]
[1767924539100,0.69242162,139.08,139.03,0.69112906]
[1767924539304,6.36120375,139.07,139.03,0.69112906]
[1767924539498,6.36120375,139.07,139.03,7.88377446]
[1767924539694,6.36120375,139.04,138.97,0.69112906]
[1767924540000,13.12,139.07,138.99,7.19467516]
[1767924540001,0.69242162,139.02,138.99,7.19467516]
[1767924540186,0.66242162,139.02,138.99,7.19467516]
[1767924540381,0.66242162,139.02,138.96,13.81112906]
[1767924540382,5.66878213,139.0,138.96,13.12]
[1767924540588,5.66878213,139.01,138.96,21.00730385]
[1767924540995,5.66878213,139.02,138.97,0.69112906]
[1767924541196,7.19062342,139.07,138.99,0.69112906]
[1767924541398,5.66878213,139.04,138.99,0.69112906]
[1767924541904,5.66878213,139.08,139.04,0.69112906]
[1767924542290,0.69242162,139.11,139.04,0.69112906]
[1767924542484,0.69242162,139.11,139.01,0.28432314]
[1767924542485,2.91799045,139.11,139.06,0.69112906]
[1767924543082,10.1065625,139.11,139.06,0.69112906]
[1767924544106,2.22556883,139.1,139.06,0.69112906]
[1767924544605,7.88099367,139.11,139.06,0.69112906]
[1767924544606,13.55853752,139.11,139.06,0.69112906]
[1767924546109,6.36996547,139.11,139.06,7.88214997]
[1767924546413,13.55857222,139.11,139.06,7.88214997]
[1767924546613,13.55857222,139.11,139.06,0.69112906]
[1767924546810,13.55857222,139.11,139.06,7.88217449]
[1767924548211,13.55857222,139.11,139.06,0.69112906]
[1767924548601,6.36328498,139.1,139.06,0.69112906]
[1767924548802,6.36328498,139.09,139.04,21.03668153]
[1767924549287,6.36328498,139.08,139.04,13.12]
[1767924549492,25.15999629,139.11,139.0,7.91877193]
[1767924549493,6.36328498,139.05,139.0,7.91877193]
[1767924549715,6.36328498,139.04,138.98,7.91943952]
[1767924549913,0.68574113,139.01,138.96,0.72457214]
[1767924550116,6.36328498,139.01,138.96,7.92048979]
[1767924550696,0.68574113,139.05,138.99,0.72457214]
[1767924550889,5.67754385,139.05,139.0,0.72457214]
[1767924551402,5.67754385,139.04,139.0,0.72457214]
[1767924552110,5.67754385,139.04,139.0,7.91862415]
[1767924552918,0.68574113,139.05,139.0,7.91862415]
[1767924552919,6.36328498,139.05,139.0,7.91862415]
[1767924553115,6.36328498,139.05,139.0,13.596168]
[1767924553428,6.36328498,139.05,139.0,7.91862415]
[1767924554019,0.68574113,139.04,139.0,7.19405201]
[1767924554197,5.67754385,139.05,139.01,0.72457214]
[1767924554525,6.36328498,139.05,139.01,0.72457214]
[1767924556310,0.68574113,139.05,139.01,0.72457214]
[1767924556529,6.36328498,139.05,139.01,0.72457214]
[1767924557911,6.36328498,139.05,139.01,7.91828868]
[1767924558113,5.67754385,139.06,139.02,0.72457214]
[1767924558825,6.36328498,139.06,139.02,0.72457214]
[1767924559123,5.67754385,139.05,139.02,0.72457214]
[1767924561629,5.67754385,139.05,139.0,7.91881674]
[1767924561933,6.36328498,139.05,139.0,7.91881674]
[1767924562234,6.36328498,139.05,139.01,0.72457214]
[1767924562528,0.68574113,139.05,139.01,0.72457214]
[1767924562731,6.36328498,139.05,139.01,0.72457214]
[1767924563625,5.67754385,139.05,139.01,7.91824309]
[1767924564524,3.48016804,139.05,139.01,7.91824309]
[1767924566008,4.16590917,139.06,139.02,0.72457214]
[1767924566230,0.68574113,139.06,139.02,0.72457214]
[1767924566431,4.16590917,139.06,139.02,0.72457214]
[1767924566611,0.68574113,139.06,139.02,0.72457214]
[1767924566809,0.68574113,139.04,138.98,13.84457214]
[1767924567022,4.16590917,139.02,138.98,13.84457214]
[1767924567238,3.48016804,139.03,138.99,0.72457214]
[1767924567636,3.48016804,139.03,138.99,1.22457214]
[1767924568619,0.68574113,139.08,139.01,0.72457214]
[1767924568837,109.7801107,139.1,139.05,0.72457214]
[1767924568838,3.48016804,139.1,139.05,0.72457214]
[1767924569137,3.48016804,139.09,139.06,0.72457214]
[1767924569325,4.16590917,139.09,139.04,4.20474018]
[1767924569525,0.68574113,139.09,139.04,4.20474018]
[1767924569713,4.16590917,139.09,139.04,4.20474018]
[1767924569916,0.68574113,139.09,139.05,0.72457214]
[1767924570133,17.97064342,139.12,139.05,0.72457214]
[1767924570134,7.18812909,139.12,139.07,0.72457214]
[1767924570336,10.66829713,139.12,139.07,0.72457214]
[1767924570535,16.41204111,139.12,139.07,0.72457214]
[1767924571032,7.87342343,139.13,139.08,0.72457214]
[1767924571226,17.09733545,139.13,139.08,0.72457214]
[1767924571724,7.18706069,139.14,139.08,0.72457214]
[1767924571931,16.41097271,139.14,139.09,0.72457214]
[1767924572241,9.90965315,139.15,139.1,0.72457214]
[1767924572422,0.68574113,139.14,139.09,9.22391202]
[1767924573028,9.90965315,139.14,139.09,9.22391202]
[1767924573242,0.6591981,139.13,139.09,16.41327087]
[1767924574717,9.88311012,139.17,139.12,0.66655373]
[1767924575043,9.88311012,139.15,139.1,23.01046575]
[1767924575243,9.88311012,139.15,139.11,0.66655373]
[1767924575643,7.1860993,139.16,139.12,0.66655373]
[1767924575644,9.22391202,139.16,139.12,0.66655373]
[1767924575941,0.6591981,139.17,139.12,0.66655373]
[1767924575942,9.88311012,139.17,139.12,0.66655373]
[1767924576327,17.06857865,139.17,139.12,0.66655373]
[1767924577140,9.88311012,139.17,139.12,0.66655373]
[1767924577838,9.22391202,139.16,139.12,0.66655373]
[1767924578736,9.22391202,139.16,139.12,7.85455164]
[1767924579345,9.22391202,139.16,139.12,0.66655373]
[1767924579641,0.6591981,139.19,139.13,0.66655373]
[1767924579822,9.88311012,139.18,139.13,16.41142179]
[1767924580022,9.88311012,139.18,139.13,17.07797552]
[1767924580327,0.6591981,139.18,139.14,13.78655373]
[1767924580531,0.6591981,139.18,139.14,23.01046575]
[1767924580840,9.88311012,139.18,139.14,13.12]
[1767924581040,9.88311012,139.17,139.14,13.12]
[1767924581248,9.22391202,139.16,139.14,13.12]
[1767924583447,0.6591981,139.16,139.14,13.12]
[1767924583947,7.84435954,139.18,139.14,13.12]
[1767924584239,17.06827156,139.18,139.14,13.12]
[1767924584649,0.6591981,139.17,139.14,13.12]
[1767924586136,9.22391202,139.18,139.14,13.78655373]
[1767924586742,9.22391202,139.18,139.1,62.1]
[1767924586743,0.6591981,139.16,139.1,0.66655373]
[1767924586941,9.88311012,139.17,139.12,0.66655373]
[1767924587460,9.88311012,139.13,139.09,0.66655373]
[1767924587664,9.88311012,139.12,139.08,13.12]
[1767924588165,0.6591981,139.12,139.08,13.12]
[1767924588340,9.88311012,139.12,139.08,13.12]
[1767924588767,0.6591981,139.13,139.08,20.97649233]
[1767924588959,9.88311012,139.13,139.08,20.97649233]
[1767924589267,0.6591981,139.12,139.08,20.3099386]
[1767924589478,0.6591981,139.12,139.08,20.97649233]
[1767924592574,9.22391202,139.13,139.09,0.66655373]
[1767924592974,9.22391202,139.12,139.09,0.66655373]
[1767924593353,9.22391202,139.13,139.09,0.66655373]
[1767924593552,9.88311012,139.13,139.09,0.66655373]
[1767924593754,9.22391202,139.12,139.08,13.12]
[1767924593955,9.22391202,139.12,139.08,13.78655373]
[1767924594457,9.88311012,139.12,139.08,13.78655373]
[1767924595378,9.88311012,139.1,139.08,13.12]
[1767924595588,9.22391202,139.1,139.08,13.12]
[1767924596177,9.22391202,139.09,139.06,0.66655373]
[1767924596366,9.88311012,139.1,139.06,7.85764901]
[1767924596875,0.6591981,139.1,139.06,7.85764901]
[1767924597388,9.88547813,139.1,139.06,7.85764901]
[1767924598466,9.88547813,139.1,139.06,0.66655373]
[1767924600075,9.88547813,139.09,139.05,20.31132533]
[1767924600282,9.88547813,139.06,139.01,18.64959605]
[1767924600477,9.71386095,139.06,139.01,0.66655373]
[1767924600683,9.22628003,139.07,139.02,0.66655373]
[1767924601192,9.22628003,139.11,139.06,0.66655373]
[1767924601575,13.12,139.14,139.06,0.66655373]
[1767924601770,9.22628003,139.1,139.06,0.66655373]
[1767924602100,9.22628003,139.11,139.06,0.66655373]
[1767924602488,9.88547813,139.11,139.06,20.97744913]
[1767924604476,0.6591981,139.11,139.07,0.66522139]
[1767924604686,9.88547813,139.11,139.07,0.66522139]
[1767924605277,6.6801107,139.15,139.08,0.66522139]
[1767924605278,9.22628003,139.13,139.08,0.66522139]
[1767924605485,17.09771962,139.14,139.09,0.66522139]
[1767924606172,9.91061122,139.14,139.09,0.66522139]
[1767924606373,0.68433119,139.14,139.1,0.66522139]
[1767924606569,9.91061122,139.14,139.1,0.66522139]
[1767924610186,0.68433119,139.14,139.1,0.66522139]
[1767924610386,9.91061122,139.14,139.1,0.66522139]
[1767924611184,9.91061122,139.16,139.11,0.66522139]
[1767924611595,9.91061122,139.16,139.11,1.16522139]
[1767924611791,0.68433119,139.15,139.11,1.16522139]
[1767924611999,9.91061122,139.15,139.11,1.16522139]
[1767924613074,9.91061122,139.15,139.11,8.35339386]
[1767924613984,9.91061122,139.15,139.11,1.16522139]
[1767924614191,9.91061122,139.14,139.11,0.5]
[1767924614592,4.16000033,139.14,139.11,0.5]
[1767924615393,4.16000033,139.14,139.1,7.85418304]
[1767924618502,0.66144306,139.15,139.11,0.68503591]
[1767924618690,3.47566914,139.14,139.11,0.68503591]
[1767924618889,4.1371122,139.15,139.11,0.68503591]
[1767924619294,3.47566914,139.15,139.12,0.68503591]
[1767924620793,4.1371122,139.15,139.12,0.68503591]
[1767924622908,3.47566914,139.16,139.13,0.68503591]
[1767924623091,0.66144306,139.17,139.13,0.68503591]
[1767924623400,4.1371122,139.18,139.13,0.68503591]
[1767924624288,4.1371122,139.18,139.14,0.68503591]
[1767924624695,4.1371122,139.19,139.14,0.68503591]
[1767924624892,7.18404971,139.2,139.16,0.68503591]
[1767924624893,4.1371122,139.2,139.16,0.68503591]
[1767924625082,4.1371122,139.2,139.16,0.62503591]
[1767924625285,3.47566914,139.19,139.16,0.62503591]
[1767924625901,4.1371122,139.19,139.16,0.62503591]
[1767924626606,2.88422661,139.19,139.16,0.62503591]
[1767924627304,2.88422661,139.19,139.16,7.81084726]
[1767924627603,2.88422661,139.2,139.17,0.68503591]
[1767924627806,2.88422661,139.2,139.17,0.62503591]
[1767924628908,2.22278355,139.21,139.17,7.81037732]
[1767924629111,2.88422661,139.22,139.17,9.40812496]
[1767924629407,0.66144306,139.21,139.17,9.40812496]
[1767924630008,0.66144306,139.21,139.17,25.14898299]
[1767924630203,0.66144306,139.21,139.18,2.22278355]
[1767924630586,2.22278355,139.24,139.18,2.90781946]
[1767924630999,2.22278355,139.24,139.19,7.68393794]
[1767924631205,2.22278355,139.24,139.19,7.62393794]
[1767924632584,0.71585767,139.23,139.19,7.62393794]
[1767924633092,2.3984551,139.24,139.2,0.66411877]
[1767924633292,2.3984551,139.24,139.2,0.60411877]
[1767924633498,2.22278355,139.23,139.2,0.60411877]
[1767924634198,2.22278355,139.23,139.19,7.62393794]
[1767924634593,2.22278355,139.23,139.19,7.56393794]
[1767924634794,0.71585767,139.22,139.19,7.50393794]
[1767924635206,0.71585767,139.22,139.19,7.18393794]
[1767924635611,0.71585767,139.22,139.18,7.18494036]
[1767924637109,2.93864122,139.22,139.18,7.18494036]
[1767924637310,0.23507155,139.21,139.18,7.18494036]
[1767924638114,2.4578551,139.23,139.19,0.66411877]
[1767924638818,2.4578551,139.23,139.19,7.84837498]
[1767924639196,2.22278355,139.23,139.19,7.84837498]
[1767924639892,7.89784565,139.24,139.19,7.84837498]
[1767924640215,2.22278355,139.23,139.19,7.84837498]
[1767924640415,2.22278355,139.23,139.2,0.66411877]
[1767924641009,2.22278355,139.24,139.2,0.66411877]
[1767924641308,0.23983134,139.23,139.18,28.03419359]
[1767924641507,0.81585767,139.25,139.2,2.88690232]
[1767924641709,0.81585767,139.25,139.21,0.66411877]
[1767924641913,0.81585767,139.25,139.19,13.12]
[1767924642100,0.1,139.25,139.21,2.22278355]
[1767924642420,0.1,139.25,139.22,7.18287602]
[1767924642807,0.1,139.26,139.22,7.18287602]
[1767924642808,0.1,139.26,139.23,2.22278355]
[1767924642993,0.1,139.26,139.22,40.48284962]
[1767924643193,0.1,139.26,139.22,38.26006607]
[1767924644024,0.1,139.26,139.23,0.66411877]
[1767924644528,0.1,139.26,139.24,0.66411877]
[1767924648232,0.70346598,139.24,139.21,7.18333155]
[1767924648526,0.1,139.26,139.19,0.66411877]
[1767924648527,2.22278355,139.22,139.19,0.66411877]
[1767924648707,0.71164381,139.23,139.19,0.66411877]
[1767924649022,2.22278355,139.21,139.19,0.66411877]
[1767924650012,7.89806412,139.24,139.19,0.66411877]
[1767924650212,2.22278355,139.22,139.19,0.66411877]
[1767924651112,7.89806412,139.24,139.19,0.66411877]
[1767924651312,2.22278355,139.22,139.19,0.66411877]
[1767924652119,7.18220645,139.24,139.19,0.66411877]
[1767924652326,1e-08,139.27,139.23,2.22278355]
[1767924652634,537.83890573,139.4,139.26,2.22278355]
[1767924652635,13.12,139.39,139.26,2.22278355]
[1767924652798,13.12,139.39,139.24,19.8001107]
[1767924652799,0.71585767,139.34,139.29,2.22278355]
[1767924653004,0.71585767,139.36,139.31,2.22278355]
[1767924653226,0.71585767,139.36,139.31,9.4009554]
[1767924653410,2.93864122,139.38,139.32,2.22278355]
[1767924653736,2.22278355,139.36,139.31,7.1781362]
[1767924654025,0.71585767,139.37,139.32,2.22278355]
[1767924654226,2.93864122,139.37,139.31,9.40091975]
[1767924654416,0.71585767,139.37,139.32,2.22278355]
[1767924655430,0.71585767,139.37,139.32,9.40033244]
[1767924655925,2.93864122,139.34,139.3,13.12]
[1767924656420,0.71585767,139.36,139.31,2.22278355]
[1767924656807,2.93864122,139.36,139.31,2.22278355]
[1767924657416,0.71585767,139.36,139.31,2.22278355]
[1767924657609,0.71585767,139.36,139.31,9.40091759]
[1767924657811,0.71585767,139.36,139.32,2.22278355]
[1767924658025,0.71585767,139.36,139.31,9.40091759]
[1767924658904,2.93864122,139.36,139.31,9.40091759]
[1767924659110,2.22278355,139.36,139.31,7.17813404]
[1767924659507,2.93864122,139.37,139.31,9.40091759]
[1767924660106,0.71585767,139.37,139.31,9.40091759]
[1767924660315,0.71585767,139.36,139.31,7.17813404]
[1767924660514,0.71585767,139.36,139.31,9.40091759]
[1767924660726,0.71585767,139.39,139.34,2.22278355]
[1767924660926,0.1,139.4,139.36,2.22278355]
[1767924661103,0.1,139.4,139.37,2.22278355]
[1767924661426,2.22278355,139.44,139.39,2.22278355]
[1767924661629,0.71585767,139.45,139.39,2.22278355]
[1767924661927,2.93864122,139.41,139.31,87.25619159]
[1767924662113,2.22278355,139.4,139.35,2.22278355]
[1767924662309,2.93864122,139.39,139.36,13.1]
[1767924662507,6.37046217,139.39,139.36,13.04]
[1767924663242,0.67045334,139.36,139.3,12.83330111]
[1767924663548,0.67045334,139.35,139.3,20.27869661]
[1767924663852,0.67045334,139.35,139.3,13.1]
[1767924664022,6.32505784,139.35,139.3,18.7546045]
[1767924664341,0.67045334,139.35,139.3,18.6820145]
[1767924664547,0.67045334,139.35,139.3,25.8607278]
[1767924665046,0.67045334,139.35,139.3,13.02741]
[1767924665047,0.67045334,139.32,139.3,13.02741]
[1767924665450,0.67045334,139.32,139.3,12.30241]
[1767924665739,0.67045334,139.32,139.3,11.57741]
[1767924667328,0.67045334,139.32,139.3,10.69786334]
[1767924667527,0.67045334,139.32,139.28,5.6546045]
[1767924667830,12.9309137,139.33,139.28,0.69803107]
[1767924669037,5.6546045,139.32,139.28,0.69803107]
[1767924669245,6.21572259,139.3,139.27,13.1]
[1767924669425,6.21572259,139.3,139.25,6.35263557]
[1767924669621,0.56111809,139.3,139.25,5.6546045]
[1767924670143,0.10824189,139.29,139.25,5.6546045]
[1767924670351,5.7536045,139.3,139.25,6.35263557]
[1767924670650,5.6546045,139.3,139.26,0.69803107]
[1767924670850,0.5657388,139.29,139.25,5.6546045]
[1767924671633,0.099,139.33,139.28,6.35263557]
[1767924671855,12.83087692,139.35,139.3,0.69803107]
[1767924671856,5.6546045,139.34,139.3,0.69803107]
[1767924672234,0.10366739,139.33,139.28,5.6546045]
[1767924672635,12.83175007,139.34,139.29,6.35263557]
[1767924672959,12.83175007,139.34,139.29,0.69803107]
[1767924674159,12.83077959,139.35,139.3,0.66632314]
[1767924674460,5.6546045,139.34,139.3,0.66632314]
[1767924676148,12.83138201,139.34,139.3,0.66632314]
[1767924676357,5.6546045,139.33,139.28,0.66632314]
[1767924676660,5.6546045,139.33,139.29,0.66632314]
[1767924677655,12.8320398,139.33,139.29,0.66632314]
[1767924677864,5.6546045,139.33,139.29,0.66632314]
[1767924678459,17.94137038,139.35,139.27,20.2798645]
[1767924678460,7.17631276,139.35,139.3,6.32092764]
[1767924678759,5.6546045,139.36,139.31,0.66632314]
[1767924678940,5.6546045,139.37,139.32,0.66632314]
[1767924679563,5.6546045,139.36,139.32,0.66632314]
[1767924680249,12.82979801,139.37,139.33,0.66632314]
[1767924680566,5.6546045,139.37,139.33,0.66632314]
[1767924681144,12.82978677,139.37,139.33,0.66632314]
[1767924682464,5.6546045,139.38,139.34,0.66632314]
[1767924682661,7.17455081,139.39,139.34,0.66632314]
[1767924682856,12.82915531,139.39,139.34,0.66632314]
[1767924683747,5.6546045,139.38,139.34,0.66632314]
[1767924683948,12.82932482,139.38,139.34,0.66632314]
[1767924684353,12.82932482,139.38,139.34,0.60632314]
[1767924684864,0.61993003,139.36,139.28,17.94929575]
[1767924685066,7.17472032,139.38,139.32,12.83229222]
[1767924685247,7.79985912,139.38,139.31,5.6546045]
[1767924685448,5.6546045,139.37,139.31,5.6546045]
[1767924685767,5.6546045,139.37,139.31,12.8324588]
[1767924686364,5.6546045,139.36,139.31,6.32092764]
[1767924686545,0.63045334,139.36,139.29,0.66632314]
[1767924686948,16.36814529,139.37,139.32,0.66632314]
[1767924687147,9.1926596,139.37,139.33,0.66632314]
[1767924687641,7.80510785,139.38,139.33,0.66632314]
[1767924687846,9.1926596,139.37,139.33,0.66632314]
[1767924688665,16.36798294,139.37,139.33,0.66632314]
[1767924688959,9.1926596,139.36,139.33,0.66632314]
[1767924689466,9.1926596,139.36,139.32,0.66632314]
[1767924689971,16.36837082,139.36,139.32,0.66632314]
[1767924690147,9.1926596,139.35,139.32,0.66632314]
[1767924690464,9.1926596,139.33,139.28,9.85898274]
[1767924690765,9.1926596,139.33,139.28,0.66632314]
[1767924690966,0.10941807,139.33,139.28,0.66632314]
[1767924691160,9.1926596,139.34,139.29,9.85898274]
[1767924691464,9.1926596,139.34,139.3,0.66632314]
[1767924691668,16.36886082,139.35,139.31,0.66632314]
[1767924691843,9.1926596,139.34,139.3,0.66632314]
[1767924692470,16.99399962,139.35,139.3,17.03770868]
[1767924692849,16.99399962,139.35,139.3,9.85898274]
[1767924693146,9.1926596,139.34,139.3,0.66632314]
[1767924694054,16.36945603,139.34,139.3,0.66632314]
[1767924695070,16.99414647,139.35,139.3,0.66632314]
[1767924696349,16.99414647,139.35,139.3,7.84499705]
[1767924697156,9.8177984,139.35,139.3,7.84499705]
[1767924697557,9.8177984,139.35,139.3,17.03765665]
[1767924697964,9.29692099,139.34,139.29,9.1926596]
[1767924698351,9.29692099,139.34,139.29,9.86783371]
[1767924699557,16.36967139,139.34,139.3,0.67517411]
[1767924699965,16.3689371,139.35,139.31,0.67517411]
[1767924700775,16.9940759,139.35,139.31,0.67517411]
[1767924701171,7.8014163,139.35,139.31,0.67517411]
[1767924701372,0.10426139,139.34,139.3,9.1926596]
[1767924701672,7.28102834,139.34,139.3,9.1926596]
[1767924702178,7.28102834,139.34,139.29,17.04681086]
[1767924702765,7.28102834,139.34,139.3,0.67517411]
[1767924702970,0.61482491,139.31,139.27,13.1]
[1767924703164,9.80748451,139.31,139.27,13.1]
[1767924703858,9.80748451,139.31,139.27,13.77517411]
[1767924704161,7.27517509,139.35,139.3,0.67517411]
[1767924704474,110.90567489,139.37,139.32,9.1926596]
[1767924704773,120.09833449,139.37,139.32,9.1326596]
[1767924705188,9.1926596,139.33,139.29,0.67517411]
[1767924706259,16.37019003,139.33,139.29,0.67517411]
[1767924706694,9.1926596,139.3,139.27,0.67517411]
[1767924706860,9.1926596,139.31,139.27,0.67517411]
[1767924707060,9.1926596,139.32,139.27,0.67517411]
[1767924707357,7.17753043,139.33,139.27,0.67517411]
[1767924707563,9.1926596,139.31,139.27,0.67517411]
[1767924707865,19.09505807,139.36,139.3,0.67517411]
[1767924707866,9.1926596,139.34,139.3,0.67517411]
[1767924708081,7.17566016,139.36,139.29,9.86783371]
[1767924708368,9.1926596,139.33,139.27,9.86783371]
[1767924708578,9.1926596,139.32,139.26,7.85596232]
[1767924708766,9.1926596,139.34,139.29,0.67517411]
[1767924708959,22.2926596,139.34,139.29,0.67517411]
[1767924709391,9.1926596,139.33,139.29,0.67517411]
[1767924709691,9.1926596,139.33,139.28,0.67517411]
[1767924710480,10.64400055,139.33,139.28,0.67517411]
[1767924710992,3.46663398,139.32,139.26,0.67517411]
[1767924711162,3.46663398,139.31,139.26,4.14180809]
[1767924711364,3.46663398,139.31,139.27,0.67517411]
[1767924712270,25.12037956,139.33,139.27,0.67517411]
[1767924712582,3.46663398,139.32,139.27,0.67517411]
[1767924712776,10.64450495,139.32,139.27,0.67517411]
[1767924714283,10.64450495,139.32,139.28,0.67517411]
[1767924715064,3.46663398,139.31,139.28,0.67517411]
[1767924715678,3.46663398,139.31,139.26,0.67517411]
[1767924716056,7.17787097,139.32,139.26,0.67517411]
[1767924716057,3.46663398,139.29,139.26,0.67517411]
[1767924716268,7.17787097,139.32,139.27,0.67517411]
[1767924716478,3.46663398,139.31,139.27,0.67517411]
[1767924717070,10.64503082,139.31,139.27,0.67517411]
[1767924717274,3.46663398,139.3,139.27,0.67517411]
[1767924717987,3.46663398,139.3,139.25,7.85645429]
[1767924718285,3.46663398,139.3,139.26,0.67517411]
[1767924719274,3.46663398,139.29,139.26,0.67517411]
[1767924719476,25.12021818,139.33,139.26,0.67517411]
[1767924719677,3.46663398,139.29,139.26,0.67517411]
[1767924720182,25.12021818,139.33,139.24,0.67517411]
[1767924720385,3.46663398,139.26,139.24,0.67517411]
[1767924720685,16.56663398,139.3,139.24,0.67517411]
[1767924720887,3.46663398,139.26,139.24,0.67517411]
[1767924721391,3.46663398,139.27,139.24,0.67517411]
[1767924721887,7.17998354,139.28,139.24,0.67517411]
[1767924722065,3.46663398,139.28,139.25,0.67517411]
[1767924722789,3.46663398,139.28,139.24,0.66997467]
[1767924722990,3.46663398,139.27,139.24,0.66997467]
[1767924723185,7.17823558,139.31,139.25,0.66997467]
[1767924723390,3.46663398,139.28,139.25,0.66997467]
[1767924726290,10.64504674,139.31,139.26,0.66997467]
[1767924726470,10.64504674,139.31,139.27,0.66997467]
[1767924726675,3.46663398,139.31,139.27,0.66997467]
[1767924727098,9.6349342,139.37,139.31,0.66997467]
[1767924727099,3.46663398,139.37,139.31,0.66997467]
[1767924727276,3.46663398,139.37,139.32,4.13660865]
[1767924727787,3.46663398,139.37,139.32,0.66997467]
[1767924727788,10.64205393,139.37,139.32,0.66997467]
[1767924730073,3.46663398,139.36,139.32,0.66997467]
[1767924730804,10.64260051,139.36,139.31,7.84813364]
[1767924732390,10.64260051,139.36,139.31,7.84819924]
[1767924732596,10.64260051,139.36,139.31,11.31483322]
[1767924733004,10.64260051,139.36,139.31,7.84819924]
[1767924733303,10.64260051,139.36,139.32,0.69937277]
[1767924734094,3.46663398,139.34,139.3,0.69937277]
[1767924734810,3.46663398,139.35,139.31,0.69937277]
[1767924735410,7.17514529,139.37,139.31,0.69937277]
[1767924735599,3.46663398,139.36,139.31,0.69937277]
[1767924735902,3.46663398,139.35,139.31,0.69937277]
[1767924737000,3.46663398,139.34,139.31,0.69937277]
[1767924737205,3.46663398,139.35,139.31,0.69937277]
[1767924738912,3.46663398,139.35,139.28,80.04837681]
[1767924738913,3.46663398,139.32,139.27,0.69937277]
[1767924739213,3.46663398,139.31,139.27,0.69937277]
[1767924739417,38.21678946,139.35,139.27,0.69937277]
[1767924739418,3.46663398,139.3,139.27,0.69937277]
[1767924742826,3.43663399,139.29,139.26,0.69937277]
[1767924745119,3.46663398,139.28,139.25,0.69937277]
[1767924745313,3.46663398,139.26,139.25,0.69937277]
[1767924745499,3.46663398,139.27,139.25,0.69937277]
[1767924745702,3.46663398,139.26,139.24,0.69937277]
[1767924746665,3.46663398,139.26,139.23,0.69937277]
[1767924747429,3.46663398,139.26,139.23,7.8817286]
[1767924748020,3.46663398,139.25,139.23,7.8817286]
[1767924748234,3.46663398,139.27,139.24,0.69937277]
[1767924748612,2.22027955,139.27,139.24,0.69937277]
[1767924750008,2.22027955,139.28,139.24,0.69937277]
[1767924750210,2.22027955,139.27,139.24,0.69937277]
[1767924751424,7.17929373,139.29,139.24,0.69937277]
[1767924751603,2.22027955,139.27,139.25,0.69937277]
[1767924751922,7.17929373,139.29,139.25,0.69937277]
[1767924752232,2.22027955,139.27,139.25,0.69937277]
[1767924753497,0.69779513,139.3,139.25,7.18129149]
[1767924753704,2.22027955,139.27,139.25,7.18129149]
[1767924754430,2.91807468,139.26,139.22,0.69069276]
[1767924754621,2.22027955,139.25,139.22,0.69069276]
[1767924755931,2.22027955,139.25,139.22,7.18275742]
[1767924756234,2.91807468,139.23,139.19,7.18429371]
[1767924756408,2.76839367,139.23,139.19,7.18429371]
[1767924756806,2.22027955,139.22,139.19,7.18429371]
[1767924757122,2.76839367,139.23,139.19,7.18429371]
[1767924759014,2.76839367,139.23,139.19,0.69069276]
[1767924759215,2.91807468,139.22,139.17,20.97605576]
[1767924759428,2.91807468,139.22,139.18,0.69069276]